bitfinex-derivatives/quotes_BNBF0:USTF0_20250510
["timestamp","ask_amount","ask_price","bid_price","bid_amount"]
[1746870213733,0.25716698,659.57,658.45,0.91631601]
[1746870213938,0.2640234,659.58,658.46,0.91631601]
[1746870214137,0.2640234,659.58,658.47,0.91654864]
[1746870214332,0.2640234,659.58,658.48,0.91654864]
[1746870214537,0.25710473,659.57,658.49,0.91654864]
[1746870214734,0.25710473,659.57,658.5,0.91654864]
[1746870214936,0.25710473,659.57,658.51,0.91654864]
[1746870215136,0.25710473,659.57,658.52,0.91654864]
[1746870215341,0.25710473,659.57,658.53,0.91654864]
[1746870215640,0.25710473,659.57,658.54,0.91654864]
[1746870215839,0.25710473,659.57,658.41,0.30376209]
[1746870216043,0.25710473,659.57,658.42,0.91652689]
[1746870216239,0.25710473,659.57,658.43,0.91652689]
[1746870216442,0.25710473,659.57,658.44,0.91652689]
[1746870216642,0.25710473,659.57,658.45,0.91652689]
[1746870216843,0.25710473,659.57,658.46,0.91652689]
[1746870217143,0.25710473,659.57,658.47,0.91652689]
[1746870217442,0.25710473,659.61,658.48,0.91652689]
[1746870217645,0.30321406,659.6,658.49,0.91652689]
[1746870217841,0.30321406,659.6,658.5,0.91652689]
[1746870218042,0.30321406,659.6,658.51,0.91652689]
[1746870218242,0.30321406,659.6,658.52,0.91652689]
[1746870218438,0.26402841,659.59,658.53,0.91652689]
[1746870218642,0.30322326,659.58,658.54,0.91652689]
[1746870218844,0.30322326,659.58,658.55,0.91652689]
[1746870219047,0.25710473,659.57,658.41,0.30376209]
[1746870219244,0.25710473,659.57,658.42,0.91643965]
[1746870219445,0.25710473,659.57,658.43,0.91643965]
[1746870219643,0.25710473,659.57,658.44,0.91643965]
[1746870219841,0.25710473,659.57,658.45,0.91643965]
[1746870220146,0.25710473,659.57,658.46,0.91643965]
[1746870220345,0.26403642,659.56,658.47,0.91643965]
[1746870220545,0.26403642,659.56,658.48,0.91643965]
[1746870220741,0.25710473,659.55,658.49,0.91643965]
[1746870220945,0.25710473,659.55,658.5,0.91643965]
[1746870221144,0.25710473,659.55,658.51,0.91643965]
[1746870221344,0.25710473,659.55,658.52,0.91643965]
[1746870221544,0.25710473,659.55,658.53,0.91643965]
[1746870221744,0.25710473,659.55,658.54,0.91643965]
[1746870221942,0.26403642,659.56,658.41,0.30376209]
[1746870222445,0.25689997,659.55,658.41,0.30376209]
[1746870226044,0.30324165,659.54,658.41,0.30376209]
[1746870226343,0.25689997,659.53,658.41,0.30376209]
[1746870226647,0.30325084,659.52,658.41,0.30376209]
[1746870227246,0.25689997,659.51,658.41,0.30376209]
[1746870227646,0.30325084,659.52,658.41,0.30376209]
[1746870227946,0.25678493,659.51,658.41,0.30376209]
[1746870229348,0.26406848,659.5,658.41,0.30376209]
[1746870229546,0.25678493,659.49,658.41,0.30376209]
[1746870231947,0.25678493,659.49,658.18,0.26409052]
[1746870232348,0.30326924,659.48,658.19,0.91809074]
[1746870232648,0.25678493,659.47,658.2,0.91809074]
[1746870232847,0.30327843,659.46,658.21,0.91809074]
[1746870233047,0.30327843,659.46,658.22,0.91809074]
[1746870233243,0.30327843,659.46,658.23,0.91809074]
[1746870233545,0.52091053,659.45,658.24,0.91809074]
[1746870233847,0.25678493,659.44,658.25,0.91809074]
[1746870234043,0.30329223,659.43,658.07,0.26412459]
[1746870234247,0.30329223,659.43,658.08,0.91770979]
[1746870234448,0.30329223,659.43,658.09,0.91770979]
[1746870234644,0.30329223,659.43,658.07,0.26412459]
[1746870234645,0.25678493,659.42,658.1,0.91770979]
[1746870234846,0.30330143,659.41,658.11,0.91770979]
[1746870235150,0.25678493,659.4,658.12,0.91770979]
[1746870235342,0.25678493,659.4,657.54,0.96479628]
[1746870235343,0.52090351,659.4,658.13,0.91770979]
[1746870235544,0.25678493,659.39,658.14,0.91770979]
[1746870235744,0.25678493,659.39,658.15,0.91770979]
[1746870235948,0.25678493,659.39,658.16,0.91770979]
[1746870236149,0.25678493,659.39,658.17,0.91770979]
[1746870236350,0.25678493,659.39,658.18,0.91770979]
[1746870236649,0.25678493,659.39,658.19,0.91770979]
[1746870236846,0.25678493,659.39,658.2,0.91770979]
[1746870237050,0.56009556,659.39,658.21,0.91770979]
[1746870237250,0.56009556,659.39,658.22,0.91770979]
[1746870237546,0.56009556,659.39,658.09,0.26411858]
[1746870237750,0.25678493,659.38,658.1,0.91569811]
[1746870237951,0.25678493,659.38,658.11,0.91569811]
[1746870238252,0.25678493,659.38,658.12,0.91569811]
[1746870238452,0.26412159,659.37,658.13,0.91569811]
[1746870238650,0.25678493,659.36,658.14,0.91569811]
[1746870238949,0.25678493,659.36,658.15,0.91569811]
[1746870239249,0.25678493,659.36,658.16,0.91569811]
[1746870239547,0.25678493,659.36,658.17,0.91653278]
[1746870239746,0.25678493,659.36,658.18,0.91653278]
[1746870239950,0.25678493,659.36,658.19,0.91653278]
[1746870240147,0.25678493,659.36,658.2,0.91653278]
[1746870240348,0.25678493,659.36,658.21,0.91653278]
[1746870240550,0.25678493,659.36,658.22,0.91653278]
[1746870240745,0.25678493,659.36,658.23,0.91653278]
[1746870240949,0.25678493,659.36,658.24,0.91631582]
[1746870241147,0.25678493,659.36,658.25,0.91631582]
[1746870241354,0.25678493,659.36,658.26,0.91631582]
[1746870241553,0.25678493,659.36,658.27,0.91631582]
[1746870241852,0.25678493,659.36,658.28,0.91631582]
[1746870242151,0.25678493,659.36,658.29,0.91636723]
[1746870242352,0.25678493,659.36,658.3,0.91636723]
[1746870242549,0.25678493,659.36,658.31,0.91636723]
[1746870242753,0.25678493,659.36,658.1,0.26412159]
[1746870242950,0.25678493,659.36,658.11,1.22050901]
[1746870243147,0.25678493,659.36,658.12,0.91660845]
[1746870243351,0.25678493,659.36,658.13,0.91660845]
[1746870243548,0.25678493,659.36,658.14,0.91660845]
[1746870243750,0.26412159,659.37,658.15,0.91660845]
[1746870244052,0.25655243,659.36,658.16,0.91660845]
[1746870244252,0.25655243,659.36,658.17,0.91660845]
[1746870244451,0.25655243,659.36,658.18,0.91660845]
[1746870244656,0.30331063,659.39,658.19,0.91660845]
[1746870244852,0.30331063,659.39,658.2,0.91660845]
[1746870245154,0.25654665,659.38,658.21,0.91660845]
[1746870245352,0.25654665,659.38,658.22,0.91660845]
[1746870245558,0.25654665,659.38,658.23,0.91660845]
[1746870245559,0.52057606,659.38,658.23,0.91660845]
[1746870245857,0.52057606,659.38,658.24,0.91673685]
[1746870246061,0.25654665,659.37,658.25,0.91673685]
[1746870246255,0.25654665,659.37,658.26,0.91673685]
[1746870246455,0.25654665,659.37,658.27,0.91673685]
[1746870246656,0.26402941,659.38,658.28,0.91673685]
[1746870246855,0.26402941,659.38,658.29,0.91673685]
[1746870247053,0.26402941,659.38,658.3,0.91673685]
[1746870247259,0.30331063,659.39,658.11,0.30390056]
[1746870247455,0.26408952,659.37,658.17,0.26408952]
[1746870247660,0.26408952,659.37,658.18,0.91674275]
[1746870247859,0.26408952,659.37,658.19,0.91674275]
[1746870248059,0.26408952,659.37,658.2,0.91674275]
[1746870248262,0.26408952,659.37,658.21,0.91674275]
[1746870248562,0.26408952,659.37,658.22,0.91674275]
[1746870248759,0.26408952,659.37,658.23,0.91674275]
[1746870248961,0.26408952,659.37,658.24,0.91674275]
[1746870249161,0.26408952,659.37,658.25,0.91674275]
[1746870249360,0.26408952,659.37,658.26,0.91674275]
[1746870249559,0.26408952,659.37,658.27,0.91674275]
[1746870249758,0.26408952,659.37,658.28,0.91674275]
[1746870249956,0.26408952,659.37,658.29,0.91674275]
[1746870250157,0.26408952,659.37,658.3,0.91674275]
[1746870250463,0.26408952,659.37,658.17,0.26408952]
[1746870250656,0.26408952,659.37,658.18,0.91739452]
[1746870250855,0.26408952,659.37,658.19,0.91739764]
[1746870251059,0.26408952,659.37,658.2,0.91739764]
[1746870251363,0.26408952,659.37,658.21,0.91739764]
[1746870251557,0.26408952,659.37,658.22,0.91739764]
[1746870251763,0.26408952,659.37,658.23,0.91739764]
[1746870252061,0.26408952,659.37,658.24,0.91739764]
[1746870252261,0.26408952,659.37,658.25,0.91739764]
[1746870252462,0.26408952,659.37,658.26,0.91739764]
[1746870252660,0.26408952,659.37,658.27,0.91739764]
[1746870252860,0.26408952,659.37,658.28,0.91739764]
[1746870253062,0.26408952,659.37,658.29,0.91739764]
[1746870253263,0.26408952,659.37,658.3,0.91739764]
[1746870253457,0.26408952,659.37,658.17,0.26408952]
[1746870253657,0.26408952,659.37,658.18,0.91734996]
[1746870253856,0.26408952,659.37,658.19,0.91734996]
[1746870254159,0.26408952,659.37,658.2,0.91734996]
[1746870254361,0.26408952,659.37,658.21,0.91734996]
[1746870254562,0.26408952,659.37,658.22,0.91734996]
[1746870254860,0.26408952,659.37,658.23,0.91734996]
[1746870255061,0.25645986,659.36,658.24,0.91734996]
[1746870255263,0.25645986,659.36,658.25,0.91734996]
[1746870255563,0.25645986,659.36,658.26,0.91734996]
[1746870255763,0.26408952,659.37,658.27,0.91734996]
[1746870255961,0.26408952,659.37,658.28,0.91734996]
[1746870256159,0.26408952,659.37,658.29,0.91734996]
[1746870256463,0.26408952,659.37,658.3,0.91734996]
[1746870256665,0.26408952,659.37,658.31,0.91734996]
[1746870256963,0.26408952,659.37,658.17,0.26408952]
[1746870256964,0.26408952,659.37,658.32,0.91734996]
[1746870257264,0.26408952,659.37,658.33,0.91725156]
[1746870257461,0.26408952,659.37,658.34,0.91725156]
[1746870257660,0.26408952,659.37,658.35,0.91725156]
[1746870257863,0.26408952,659.37,658.36,0.91725156]
[1746870258067,0.26408952,659.37,658.37,0.91725156]
[1746870258263,0.26408952,659.37,658.23,0.26405545]
[1746870259165,0.26408952,659.37,658.24,0.91737593]
[1746870259371,0.26408952,659.37,658.25,0.91737593]
[1746870259570,0.26408952,659.37,658.26,0.91737593]
[1746870259870,0.26408952,659.37,658.27,0.91737593]
[1746870260065,0.25648175,659.36,658.28,0.91737593]
[1746870260267,0.25648175,659.36,658.29,0.91737593]
[1746870260467,0.25648175,659.36,658.3,0.91737593]
[1746870260668,0.25648175,659.36,658.31,0.91737593]
[1746870260868,0.25648175,659.36,658.32,0.91737593]
[1746870261069,0.25648175,659.36,658.33,0.91737593]
[1746870261368,0.25648175,659.36,658.34,0.91737593]
[1746870261568,0.25648175,659.36,658.35,0.91737593]
[1746870261772,0.26408952,659.37,658.36,0.91737593]
[1746870261972,0.26408952,659.37,658.37,0.91737593]
[1746870262170,0.30331063,659.39,658.38,0.91737593]
[1746870262476,0.26407248,659.36,658.39,0.91737593]
[1746870262675,0.26407248,659.36,658.4,0.91737593]
[1746870263275,0.26407248,659.36,658.24,0.2640795]
[1746870263677,0.26407248,659.36,658.25,0.91768616]
[1746870265277,0.30331063,659.39,658.25,0.91768616]
[1746870265576,0.26408551,659.35,658.26,0.91768616]
[1746870265777,0.26408551,659.35,658.27,0.91768616]
[1746870265975,0.26408551,659.35,658.28,0.91768616]
[1746870266173,0.26408551,659.35,658.29,0.91768616]
[1746870266373,0.26408551,659.35,658.3,0.91768616]
[1746870266572,0.26408551,659.35,658.31,0.91768616]
[1746870266774,0.26408551,659.35,658.32,0.91768616]
[1746870266976,0.26408551,659.35,658.33,0.91837273]
[1746870267177,0.26408551,659.35,658.34,0.91837273]
[1746870267377,0.26408551,659.35,658.35,0.91837273]
[1746870267579,0.26408551,659.35,658.36,0.91837273]
[1746870267779,0.26408551,659.35,658.37,0.91837273]
[1746870267975,0.26408551,659.35,658.38,0.91837273]
[1746870268176,0.30331063,659.39,658.39,0.91837273]
[1746870268381,0.26406447,659.34,658.4,0.91837273]
[1746870268681,0.26406447,659.34,658.28,0.26406447]
[1746870268682,0.26406447,659.34,658.41,0.91837273]
[1746870268880,0.26406447,659.34,658.28,0.26406447]
[1746870269076,0.26406447,659.34,658.29,0.91853507]
[1746870269282,0.26406447,659.34,658.3,0.91853507]
[1746870269578,0.26406447,659.34,658.31,0.91853507]
[1746870269782,0.26406447,659.34,658.32,0.91853507]
[1746870269982,0.26406447,659.34,658.33,0.91853507]
[1746870270177,0.26406447,659.34,658.34,0.91853507]
[1746870270376,0.26406447,659.34,658.35,0.91853507]
[1746870270578,0.26406447,659.34,658.36,0.91853507]
[1746870270777,0.26406447,659.34,658.28,0.26406447]
[1746870270778,0.26406447,659.34,658.37,0.91853507]
[1746870271080,0.26406447,659.34,658.38,0.91853507]
[1746870271281,0.30331063,659.39,658.39,0.91853507]
[1746870271479,0.26406848,659.33,658.11,0.30390056]
[1746870271681,0.26406848,659.33,658.12,0.91890845]
[1746870271884,0.26406848,659.33,658.13,0.91890845]
[1746870272184,0.26406848,659.33,658.14,0.91890845]
[1746870272382,0.26406848,659.33,658.15,0.91908886]
[1746870272584,0.26406848,659.33,658.16,0.91908886]
[1746870272782,0.26406848,659.33,658.17,0.91908886]
[1746870272978,0.26406848,659.33,658.18,0.91908886]
[1746870273182,0.26406848,659.33,658.19,0.91908886]
[1746870273386,0.26406848,659.33,658.2,0.91916084]
[1746870273684,0.2563389,659.32,658.21,0.91916084]
[1746870273881,0.2563389,659.32,658.22,0.91916084]
[1746870274079,0.2563389,659.32,658.23,0.91916084]
[1746870274284,0.2563389,659.32,658.24,0.91916084]
[1746870274484,0.2563389,659.32,658.25,0.91916084]
[1746870274680,0.2563389,659.32,658.26,0.91916084]
[1746870274881,0.2563389,659.32,658.27,0.91916084]
[1746870275186,0.2563389,659.32,658.28,0.91916084]
[1746870275384,0.2563389,659.32,658.29,0.91916084]
[1746870275584,0.2563389,659.32,658.3,0.91916084]
[1746870275782,0.2563389,659.32,658.31,0.91916084]
[1746870275985,0.2563389,659.32,658.32,0.91916084]
[1746870276186,0.2563389,659.32,658.33,0.91916084]
[1746870276387,0.2563389,659.32,658.34,0.91916084]
[1746870276584,0.2563389,659.32,658.35,0.91916084]
[1746870276784,0.2563389,659.32,658.14,0.26410555]
[1746870276984,0.26406848,659.33,658.15,0.91951069]
[1746870277187,0.25630493,659.32,658.16,0.91951069]
[1746870277388,0.25630493,659.32,658.17,0.91951069]
[1746870277583,0.25630493,659.38,658.18,0.91951069]
[1746870277787,0.25630493,659.38,658.19,0.91951069]
[1746870278083,0.25630493,659.38,658.2,0.91951069]
[1746870278382,0.25630493,659.38,658.21,0.91951069]
[1746870278583,0.26410655,659.37,658.22,0.91951069]
[1746870278783,0.26410655,659.37,658.23,0.91951069]
[1746870279085,0.25630493,659.36,658.24,0.91951069]
[1746870279283,0.25630493,659.36,658.25,0.91951069]
[1746870279486,0.25630493,659.36,658.26,0.91951069]
[1746870279686,0.25630493,659.36,658.27,0.91951069]
[1746870279882,0.25630493,659.36,658.28,0.91951069]
[1746870280086,0.25630493,659.36,658.29,0.91951069]
[1746870280285,0.25630493,659.36,658.3,0.91951069]
[1746870280484,0.26409753,659.35,658.31,0.91951069]
[1746870280682,0.26409753,659.35,658.32,0.91951069]
[1746870280887,0.25630493,659.34,658.33,0.91951069]
[1746870281190,0.25630493,659.34,658.34,0.91951069]
[1746870281387,0.25630493,659.34,657.62,0.96479628]
[1746870281587,0.25630493,659.34,658.19,0.26409353]
[1746870281782,0.25630493,659.34,658.2,0.91981859]
[1746870281983,0.25630493,659.34,658.21,0.91981859]
[1746870282289,0.25630493,659.34,658.22,0.91981859]
[1746870282588,0.25630493,659.34,658.23,0.91981859]
[1746870282789,0.25630493,659.34,658.24,0.91981859]
[1746870282988,0.25630493,659.34,658.25,0.91981859]
[1746870283189,0.25630493,659.34,658.26,0.91981859]
[1746870283387,1.97189568,659.88,658.27,0.91981859]
[1746870283692,0.25623654,659.87,658.28,0.91981859]
[1746870283892,0.25623654,659.87,658.29,0.91981859]
[1746870284191,0.25623654,659.86,658.3,0.91981859]
[1746870284487,0.25623654,659.85,658.31,0.91981859]
[1746870284691,0.25623654,659.85,658.32,0.92012053]
[1746870284887,0.25623654,659.84,658.33,0.92012053]
[1746870285091,0.25623654,659.84,658.34,0.92012053]
[1746870285294,0.25623654,659.83,658.35,0.92012053]
[1746870285588,0.25623654,659.83,658.19,0.26404844]
[1746870285792,0.25623654,659.82,658.2,0.92013712]
[1746870285996,1.97189568,659.85,658.21,0.92013712]
[1746870286192,1.97189568,659.85,658.22,0.92013712]
[1746870286392,1.97189568,659.85,658.23,0.92013712]
[1746870286592,1.97189568,659.85,658.24,0.92013712]
[1746870286789,1.97189568,659.85,658.25,0.92013712]
[1746870286995,0.2562394,659.84,658.26,0.92013712]
[1746870287194,0.2562394,659.84,658.27,0.92013712]
[1746870287395,0.2562394,659.83,658.28,0.92013712]
[1746870287593,0.52029385,659.83,658.29,0.92013712]
[1746870287798,0.2562394,659.82,658.3,0.92013712]
[1746870287998,0.2562394,659.82,658.31,0.92013712]
[1746870288299,0.2562394,659.81,658.32,0.92013712]
[1746870288600,0.2562394,659.82,658.33,0.92013712]
[1746870288795,0.2562394,659.81,658.34,0.92013712]
[1746870289099,0.2562394,659.82,658.35,0.92013712]
[1746870289299,0.2562394,659.82,658.36,0.92013712]
[1746870289599,0.52027582,659.81,658.19,0.26403642]
[1746870289793,0.2562394,659.8,658.2,0.92037651]
[1746870289997,0.2562394,659.8,658.21,0.92037651]
[1746870290197,0.2562394,659.79,658.22,0.92037651]
[1746870290399,0.2562394,659.79,658.23,0.92037651]
[1746870290597,0.2562394,659.78,658.24,0.92037651]
[1746870290799,0.2562394,659.8,658.25,0.92037651]
[1746870290999,0.2562394,659.8,658.26,0.92037651]
[1746870291199,0.2562394,659.8,658.27,0.92037651]
[1746870291396,0.2562394,659.8,658.28,0.92037651]
[1746870291600,0.2562394,659.8,658.29,0.92037651]
[1746870291801,0.2562394,659.8,658.3,0.92037651]
[1746870291997,0.2562394,659.8,658.31,0.92037651]
[1746870292197,0.2562394,659.8,658.32,0.92037651]
[1746870292495,0.2562394,659.8,658.33,0.92037651]
[1746870292699,0.2562394,659.92,658.34,0.92037651]
[1746870292899,0.2562394,659.91,658.35,0.92037651]
[1746870293100,0.2562394,659.91,657.61,0.96479628]
[1746870293299,0.2562394,659.95,657.62,0.92053456]
[1746870293600,0.26413061,659.9,657.63,1.19959038]
[1746870293797,0.26413061,659.9,657.64,0.92060686]
[1746870294001,0.2562394,659.89,657.65,0.92060686]
[1746870294197,0.2562394,659.89,657.66,1.19959038]
[1746870294397,0.2562394,659.89,657.67,0.92060686]
[1746870294602,0.2562394,659.89,657.68,0.92060686]
[1746870294804,0.2562394,659.89,657.69,1.19959038]
[1746870295003,0.2562394,659.89,657.7,0.92060686]
[1746870295204,0.2562394,659.89,657.71,0.92060686]
[1746870295503,0.2562394,659.89,657.39,0.96479628]
[1746870295504,0.26408351,659.88,657.72,0.92060686]
[1746870295704,0.26408351,659.88,657.73,0.92060686]
[1746870296003,0.2562394,659.87,657.74,1.19959038]
[1746870296203,0.2562394,659.87,657.75,0.92060686]
[1746870296404,0.2562394,659.87,657.76,0.92060686]
[1746870296601,0.2562394,659.87,657.77,1.19974141]
[1746870296905,0.2562394,659.87,657.78,0.92075789]
[1746870297105,0.2562394,659.87,657.79,0.92075789]
[1746870297306,0.2562394,659.87,657.8,0.92075789]
[1746870297500,0.2562394,659.87,657.81,0.92075789]
[1746870297705,0.2562394,659.87,657.82,1.19974141]
[1746870297905,0.2562394,659.87,657.83,0.92075789]
[1746870298103,0.2562394,659.87,657.84,1.19974141]
[1746870298307,0.2562394,659.87,657.85,1.19974141]
[1746870298505,0.26407349,659.86,657.86,0.92075789]
[1746870298703,0.26407349,659.86,657.87,0.92075789]
[1746870298906,0.26407349,659.86,657.88,0.92075789]
[1746870299108,0.2562394,659.85,657.89,0.92075789]
[1746870299409,0.2562394,659.84,657.9,1.19974141]
[1746870299609,0.2562394,659.84,657.91,0.92074797]
[1746870299808,0.2562394,659.83,657.92,0.92074797]
[1746870300004,0.2562394,659.82,657.93,1.19973149]
[1746870300203,0.2562394,659.81,657.94,1.19973149]
[1746870300403,0.2562394,659.81,657.95,0.92074797]
[1746870300609,0.2562394,659.8,657.96,0.92074797]
[1746870300809,0.2562394,659.8,657.97,0.92074797]
[1746870301003,0.2562394,659.79,657.98,0.92074797]
[1746870301206,0.2562394,659.79,657.99,0.92074797]
[1746870301406,0.2562394,659.78,658.0,0.92074797]
[1746870301606,0.2562394,659.78,658.01,0.92074797]
[1746870301804,0.2562394,659.77,658.01,1.19973149]
[1746870302209,0.2562394,659.77,658.01,0.27898352]
[1746870302408,0.2562394,659.76,658.02,0.27898352]
[1746870302609,0.52031689,659.76,658.02,0.27898352]
[1746870302809,0.26407749,659.76,658.03,0.9207214]
[1746870303009,0.2562394,659.75,658.04,1.19970492]
[1746870303304,0.2562394,659.75,658.05,0.9207214]
[1746870303504,0.2562394,659.75,658.06,0.9207214]
[1746870303704,0.2562394,659.75,658.07,0.9207214]
[1746870303908,0.2562394,659.74,658.08,0.9207214]
[1746870304109,0.2562394,659.74,658.09,0.9207214]
[1746870304310,0.2562394,659.75,658.1,0.91904459]
[1746870304509,0.2562394,659.75,658.11,0.91904459]
[1746870304712,0.2562394,659.82,658.12,0.91904459]
[1746870304911,0.2562394,659.82,658.13,0.91904459]
[1746870305111,0.2562394,659.82,658.14,0.91904459]
[1746870305311,0.2562394,659.82,658.15,0.91904459]
[1746870305513,0.26403742,659.81,658.16,0.91904459]
[1746870305712,0.26403742,659.81,658.17,0.91904459]
[1746870305914,0.2562394,659.8,658.18,0.91904459]
[1746870306208,0.2562394,659.8,658.19,1.19781925]
[1746870306414,0.2562394,659.8,658.2,0.91889448]
[1746870306610,0.2562394,659.8,658.21,0.91889448]
[1746870306809,0.2562394,659.8,658.22,0.91889448]
[1746870307010,0.2562394,659.8,658.23,0.91889448]
[1746870307214,0.2562394,659.8,658.24,0.918855]
[1746870307407,0.2562394,659.8,658.25,0.918855]
[1746870307606,0.2562394,659.8,658.26,0.91874457]
[1746870307807,0.2562394,660.15,658.27,0.91874457]
[1746870308008,0.2562394,660.15,658.28,0.91874457]
[1746870308212,0.26397834,660.14,658.29,0.91874457]
[1746870308411,0.26397834,660.14,658.3,0.91874457]
[1746870308608,0.26397834,660.14,658.31,0.91874457]
[1746870308811,1.97189568,660.03,658.32,0.91874457]
[1746870309014,0.2562394,660.02,658.33,0.91874457]
[1746870309313,0.2562394,660.02,658.34,0.91874457]
[1746870309513,0.2562394,660.02,658.35,0.91875534]
[1746870309714,0.2562394,660.02,658.36,0.91875534]
[1746870309911,0.2562394,660.02,658.37,0.91875534]
[1746870310110,0.2562394,660.02,658.38,0.91875534]
[1746870310308,0.2562394,660.02,658.39,0.91875534]
[1746870310512,0.2562394,660.02,658.4,0.91875534]
[1746870310710,0.26396432,660.01,658.41,0.91875534]
[1746870310909,0.26396432,660.01,658.42,0.91875534]
[1746870311115,0.2562394,660.0,658.43,0.91875534]
[1746870311309,0.2562394,660.0,658.44,0.91875534]
[1746870311513,0.2562394,660.0,658.45,0.91875534]
[1746870311713,0.2562394,660.0,658.46,0.91875534]
[1746870311913,0.2562394,660.0,658.47,0.91875534]
[1746870312109,0.2562394,660.0,658.48,0.91875534]
[1746870312414,0.2562394,660.0,658.49,0.91875534]
[1746870312710,0.2562394,660.0,658.5,0.91875534]
[1746870312909,0.2562394,660.0,658.51,0.91875534]
[1746870313109,0.2562394,660.0,658.52,0.91875534]
[1746870313311,0.2562394,660.0,657.77,0.96479628]
[1746870313512,0.2562394,660.0,657.78,0.91729272]
[1746870313712,0.26400737,659.99,657.79,0.91729272]
[1746870313911,0.2562394,659.98,657.8,0.91729272]
[1746870314211,0.2562394,659.98,657.81,0.91729272]
[1746870314416,0.2562394,659.98,657.82,0.91729272]
[1746870314616,0.2562394,659.98,657.83,1.19617832]
[1746870314819,0.2562394,659.98,657.84,0.91717441]
[1746870315017,0.2562394,659.98,657.85,0.91717441]
[1746870315214,0.2562394,659.98,657.86,0.91717441]
[1746870315414,0.2562394,659.98,657.87,0.91717441]
[1746870315616,0.2562394,659.98,657.88,0.91717441]
[1746870315819,0.2562394,659.98,657.89,0.91717441]
[1746870316020,0.2562394,659.98,657.9,0.91717441]
[1746870316320,0.2562394,659.98,657.91,1.19606001]
[1746870316514,0.26396332,659.97,657.92,0.91702365]
[1746870316713,0.26396332,659.97,657.93,0.91702365]
[1746870316917,0.26396332,659.97,657.94,0.91702365]
[1746870317118,0.2562394,659.96,657.95,0.91702365]
[1746870317317,0.2562394,659.96,657.96,1.19590925]
[1746870317519,0.2562394,659.96,657.97,0.91684209]
[1746870317718,0.2562394,659.96,657.98,1.19572769]
[1746870317920,0.2562394,659.96,657.99,0.91684209]
[1746870318220,0.2562394,659.96,657.99,0.2788856]
[1746870318421,0.2562394,659.96,658.0,1.19570483]
[1746870318622,0.2562394,659.96,658.01,0.91681923]
[1746870318824,0.2562394,659.96,658.02,0.91681923]
[1746870319022,0.2562394,659.96,658.03,0.91681923]
[1746870319322,0.2562394,659.96,658.04,0.91681923]
[1746870319522,0.26397033,659.95,658.05,0.91681923]
[1746870319724,0.26397033,659.95,658.06,0.91681923]
[1746870319923,0.2562394,659.94,658.07,0.91681923]
[1746870320118,0.2562394,659.94,658.08,0.91657904]
[1746870320318,0.2562394,659.94,658.09,0.91657904]
[1746870320520,0.2562394,659.94,658.1,0.91657904]
[1746870320719,0.2562394,659.94,658.11,0.91657904]
[1746870320918,0.2562394,659.94,658.12,0.91657904]
[1746870321122,0.2562394,659.94,658.13,0.91657904]
[1746870321324,0.2562394,659.94,658.14,1.19546464]
[1746870321522,0.2562394,659.94,658.15,0.91657904]
[1746870321818,0.2562394,659.94,658.16,0.91658443]
[1746870322026,0.2562394,659.94,658.17,0.91658443]
[1746870322224,0.2562394,659.94,658.18,0.91658443]
[1746870322424,0.2562394,660.34,658.19,1.19547003]
[1746870322620,0.2562394,660.34,658.2,0.91658443]
[1746870322825,1.97189568,660.33,658.21,0.91658443]
[1746870323025,0.2562394,660.32,658.22,1.19547003]
[1746870323226,0.2562394,660.32,658.23,0.91658443]
[1746870323425,0.26392828,660.31,658.24,0.91658443]
[1746870323621,0.26392828,660.31,658.25,0.91658443]
[1746870323826,0.2562394,660.3,658.26,0.91658443]
[1746870324027,0.2562394,660.3,658.25,0.2788856]
[1746870324028,0.2562394,660.3,658.27,0.91658443]
[1746870324228,0.2562394,660.3,658.28,0.91658443]
[1746870324428,0.2562394,660.3,658.29,0.91658443]
[1746870324632,0.2562394,660.3,658.3,0.91658443]
[1746870324923,0.2562394,660.3,658.31,0.91658443]
[1746870325129,0.2562394,660.3,658.32,0.91658443]
[1746870325328,0.2562394,660.3,658.33,0.91601149]
[1746870325526,0.2562394,660.82,658.34,0.91601149]
[1746870325724,0.2562394,660.82,658.35,0.91601149]
[1746870325922,0.2562394,660.82,658.36,0.91601149]
[1746870326125,0.2562394,660.81,658.37,0.91601149]
[1746870326328,0.2562394,660.81,658.38,0.91601149]
[1746870326529,0.2562394,660.8,658.39,0.91601149]
[1746870326727,0.2562394,660.8,658.4,0.91601149]
[1746870326925,0.2562394,660.79,658.41,0.91601149]
[1746870327126,0.2562394,660.78,658.42,0.91573173]
[1746870327328,0.2562394,660.78,658.43,0.91573173]
[1746870327529,0.2562394,660.77,658.44,0.91573173]
[1746870327825,0.26386425,660.81,658.45,0.91573173]
[1746870328024,0.26386425,660.81,658.16,0.26386425]
[1746870328025,0.26386425,660.81,658.46,0.91573173]
[1746870328229,0.25641041,660.8,658.47,0.91573173]
[1746870328430,0.25641041,660.79,658.48,0.91573173]
[1746870328632,0.25641041,660.79,658.49,0.91573173]
[1746870328832,0.25641041,660.78,658.5,0.91573173]
[1746870329027,0.25641041,660.77,658.51,0.91573173]
[1746870329232,0.25641041,660.77,658.52,0.91547592]
[1746870329527,0.52025765,660.76,658.53,0.91547592]
[1746870329734,0.52025765,660.76,658.54,0.91547592]
[1746870329935,0.52025765,660.76,658.3,0.26384724]
[1746870330231,0.25641041,660.75,658.31,0.91535711]